Cogmind - Beta 12 @@@ ROGUE MODE // 2023.06.07 @ 21:21:50 Player: Lord_Devi Result: Destroyed by L-31 Rogue with Katana Performance ------------- Evolutions (2) 1000 Regions Visited (5) 1000 Robots Destroyed (71) 355 Value Destroyed (2238) 2238 Prototype IDs (6) 120 Alien Tech Used (0) 0 Bonus (84) 84 TOTAL SCORE: 4797 Bonus ------- High Alert Combat Kills 84 Cogmind --------- Core Integrity 0/550 Matter 300/300 Energy 17/100 System Corruption 2% Temperature Cool (0) Movement Core (50) Location -8/Storage Parts ------- > --- POWER (2) -------- (None) > --- PROPULSION (3) --- (None) > --- UTILITY (4) ------ (None) > --- WEAPON (2) ------- (None) > --- INVENTORY (5) ---- Light Treads Improved Signal Interpreter Hacking Suite Improved Medium Laser Peak State ------------ > --- POWER ------------ Light Nuclear Core Light Angular Momentum Engine > --- PROPULSION ------- Aerolev Unit Aerolev Unit Aerolev Unit > --- UTILITY ---------- Advanced Heat Sink Small Storage Unit ECM Suite Improved Light Armor Plating > --- WEAPON ----------- Advanced EMP Blaster Advanced EMP Blaster > --- INVENTORY -------- Aerolev Unit Improved Signal Interpreter Hacking Suite Improved Medium Laser Improved Medium Laser Improved Medium Laser Minigun [Rating: 40] Favorites ----------- Power Light Deuterium Engine Engine Light Deuterium Engine Power Core Light Nuclear Core Propulsion Aerolev Unit Wheel Compact Wheel Hover Unit Aerolev Unit Flight Unit Improved Flight Unit Utility Small Storage Unit Device ECM Suite Storage Small Storage Unit Processor Signal Interpreter Protection Improved Light Armor Plating Weapon Improved Light Cannon Energy Gun EM Pulse Gun Energy Cannon EM Pulse Cannon Ballistic Gun Heavy Assault Rifle Ballistic Cannon Improved Light Cannon Launcher Advanced EMP Blaster Build | -11 -10 -10 -9 -8 -8 ------- Run | Jun Mat Min Mat Mat Sto Slots Evolved 4 | . . . 2 2 . Power 1 | . . . 1 . . Propulsion 1 | . . . 1 . . Utility 2 | . . . . 2 . Weapon . | . . . . . . Parts Attached 85 | 6 16 6 22 16 19 Power 22 | 1 3 2 7 4 5 Engine 19 | 1 3 2 7 3 3 Core 3 | . . . . 1 2 Reactor . | . . . . . . Propulsion 21 | 2 7 2 6 3 1 Treads . | . . . . . . Leg . | . . . . . . Wheel 5 | 2 3 . . . . Hover 10 | . 1 . 5 3 1 Flight 6 | . 3 2 1 . . Utility 9 | 1 1 1 . 4 2 Device 4 | . . 1 . 2 1 Storage 3 | 1 1 . . . 1 Processor 1 | . . . . 1 . Hackware . | . . . . . . Protection 1 | . . . . 1 . Artifact . | . . . . . . Weapon 33 | 2 5 1 9 5 11 Energy Gun 13 | . 2 1 5 . 5 Energy Cannon 4 | . . . 1 2 1 Ballistic Gun 5 | 2 . . 2 . 1 Ballistic Cannon 7 | . 3 . . 3 1 Launcher 4 | . . . 1 . 3 Special Weapon . | . . . . . . Impact Weapon . | . . . . . . Slashing Weapon . | . . . . . . Piercing Weapon . | . . . . . . Special Melee Weapon . | . . . . . . Unidentified Prototypes 4 | . 1 . . 1 2 Parts Lost 35 | . 2 5 6 3 19 Power 9 | . 1 . 2 1 5 Propulsion 9 | . 1 2 2 1 3 Utility 5 | . . . . 1 4 Weapon 12 | . . 3 2 . 7 Highest Loss Streak 11 | . 2 4 5 3 11 To Critical Strikes . | . . . . . . Average Slot Usage (%) 94 | . 95 91 93 94 93 Engine 14 | . 13 14 21 12 7 Core 2 | . . . . 4 8 Wheel 6 | . 17 11 . . . Hover 16 | . . . 29 23 26 Flight 3 | . 6 17 1 . . Device 9 | . . 2 11 16 17 Storage 16 | . 27 25 11 9 10 Processor 1 | . . . . 4 . Protection 1 | . . . . 4 5 Energy Gun 8 | . 8 21 11 . 8 Energy Cannon 3 | . . . 1 12 3 Ballistic Gun 2 | . 3 . 4 . . Ballistic Cannon 6 | . 15 . . 5 2 Naked Turns 1 | . . . . . 1 Heaviest Build 37 | 12 21 15 23 35 37 Greatest Support 32 | 32 32 16 24 24 24 Greatest Overweight (x) 4 | . 4 . 1 3 1 Average Overweight (x) . | . . . . 1 . Largest Inventory Capacity 8 | 8 8 8 8 8 8 Average Capacity 7 | 7 8 8 8 8 7 Most Carried 8 | 2 8 8 8 8 8 Average Carried 7 | . 7 7 7 7 6 Final Capacity 8 | 8 8 8 8 8 5 Final Carried 8 | 1 8 5 6 8 4 Class Distribution -------------------- 100% | Mutant Dominant Class ---------------- Mutant | -10/Materials Mutant | -10/Mines Mutant | -9/Materials Mutant | -8/Materials Mutant | -8/Storage Resources | -11 -10 -10 -9 -8 -8 ----------- Run | Jun Mat Min Mat Mat Sto Matter Collected 1797 | 195 581 10 462 289 260 Remotely . | . . . . . . Salvage Created 2376 | . 266 51 791 560 708 Parts 174 | . 28 10 55 43 38 Haulers Intercepted 5 | . . . 2 2 1 Recyclers Shooed 2 | . . . 2 . . Parts Field Recycled . | . . . . . . Retrieved Matter . | . . . . . . Parts Self-Destructed . | . . . . . . Prevented . | . . . . . . Kills | -11 -10 -10 -9 -8 -8 ------- Run | Jun Mat Min Mat Mat Sto Combat Hostiles Destroyed 56 | . 10 3 14 13 16 Guns 19 | . . 3 11 . 5 Cannons 24 | . 10 . 1 10 3 AOE 12 | . . . 2 2 8 Classes Destroyed 12 | . 3 . 4 3 2 Worker 1 | . . . . 1 . Builder 1 | . . . 1 . . Hauler 5 | . . . 2 2 1 Recycler 1 | . . . 1 . . Operator 1 | . . . . 1 . Watcher 6 | . 3 . 2 1 . Swarmer 10 | . 3 3 . 4 . Grunt 32 | . 7 . 11 4 10 Brawler 1 | . . . . . 1 Duelist 1 | . . . . 1 . Protector 2 | . . . . . 2 Sentry 10 | . . . 3 4 3 Best Kill Streak 7 | . 6 3 5 6 7 Combat Bots Only 7 | . 5 3 3 4 7 Max Kills in Single Turn 6 | . 2 1 1 2 6 Gunslinging 1 | . . . . . 1 Exploded 6 | . . . 1 1 6 Melee . | . . . . . . Uniques/NPCs Destroyed . | . . . . . . Combat | -11 -10 -10 -9 -8 -8 -------- Run | Jun Mat Min Mat Mat Sto Damage Taken 3800 | . 302 381 641 624 1852 Core 860 | . 76 60 140 67 517 Absorbed by Shields . | . . . . . . Regen/Repaired (Parts) 109 | . . . 109 . . Core Remaining (%) 70 | 100 . 45 65 . . Volleys Fired 173 | . 28 14 50 32 49 Largest 2 | . 2 2 2 2 2 Hottest 126 | . 80 80 100 126 126 Shots Fired 314 | . 56 22 86 64 86 Gun 141 | . 2 22 65 . 52 Cannon 148 | . 54 . 7 64 23 Launcher 25 | . . . 14 . 11 Special . | . . . . . . Kinetic 111 | . 54 . 14 27 16 Thermal 63 | . . . 14 . 49 Explosive 14 | . . . 14 . . Electromagnetic 126 | . 2 22 44 37 21 Robot Hit Streak 15 | . 6 2 15 6 7 Robot Miss Streak 5 | . 4 2 5 5 5 Penetration Max . | . . . . . . Secondary Targets 7 | . . 2 3 . 2 Max Gunslinging Chain 1 | . . 1 1 . 1 Shots Hit Robots 182 | . 27 10 53 39 53 Core Hits 120 | . 13 4 27 30 46 Critical Kills . | . . . . . . Critical Parts Destroyed . | . . . . . . Critical Strikes 9 | . 4 . 1 3 1 Burn 1 | . . . . . 1 Blast 7 | . 4 . . 3 . Corrupt 1 | . . . 1 . . Melee Attacks . | . . . . . . Impact . | . . . . . . Slashing . | . . . . . . Piercing . | . . . . . . Sneak Attacks . | . . . . . . Combat Hostiles . | . . . . . . Follow-up Attacks . | . . . . . . Damage Inflicted 5138 | . 584 125 1217 1049 2163 Guns 1297 | . . 125 663 . 509 Cannons 1991 | . 584 . 86 849 472 Explosions 1850 | . . . 468 200 1182 Melee . | . . . . . . Ramming . | . . . . . . Kinetic 1483 | . 584 . 174 357 368 Thermal 899 | . . . 163 200 536 Explosive 1179 | . . . 445 . 734 Electromagnetic 1577 | . . 125 435 492 525 Impact . | . . . . . . Slashing . | . . . . . . Piercing . | . . . . . . Highest Corruption 2 | . . . 1 . 2 Average Corruption 1 | . . . 1 . 2 Corruption Purged . | . . . . . . Corruption Blocked . | . . . . . . Effects 10 | . . . 6 . 4 Matter Fused 4 | . . . 4 . . Heat Flow Errors 1 | . . . . . 1 Energy Discharges 1 | . . . . . 1 Data Loss (minor) 3 | . . . 1 . 2 Data Loss (major) 1 | . . . 1 . . Overload Shots . | . . . . . . Overflow Damage 74 | . 1 . 8 48 17 Projectiles 6 | . 1 . . . 5 Explosions 68 | . . . 8 48 12 Melee . | . . . . . . Knockbacks 30 | . 8 . . 13 9 Impact . | . . . . . . Kinetic 28 | . 6 . . 13 9 Secondary 2 | . 2 . . . . Self-Inflicted Damage 167 | . . . . 6 161 Shots 7 | . . . . 1 6 Rammed . | . . . . . . Targets Rammed . | . . . . . . Kicked . | . . . . . . Crushed . | . . . . . . Highest Temperature 340 | . 242 110 340 252 231 Average Temperature 96 | . 85 58 124 73 78 Received Heat Transfer 1443 | . 96 96 279 252 720 Effects 8 | . 1 . 7 . . Energy Bleed 2 | . 1 . 1 . . Interference 5 | . . . 5 . . Damage (minor) 1 | . . . 1 . . Siege Activations . | . . . . . . Robots Corrupted 1 | . . . . 1 . Combat Hostiles 1 | . . . . 1 . Parts Fried 3 | . . . . 3 . Impact Corruptions . | . . . . . . Robots Melted . | . . . . . . Combat Hostiles . | . . . . . . Parts Melted 2 | . . . . . 2 Heat Transferred 1589 | . . . 360 200 1029 Parts Sabotaged . | . . . . . . Parts Stolen . | . . . . . . Parts Stripped . | . . . . . . Power Chain Reactions 7 | . . . 1 2 4 Missiles Intercepted . | . . . . . . Alert | -11 -10 -10 -9 -8 -8 ------- Run | Jun Mat Min Mat Mat Sto Peak Influence 550 | . 202 74 407 550 515 Initial 232 | . . 4 14 171 232 Average 204 | . 51 32 236 351 349 Maximum Alert Level 2 | . 1 . 2 2 2 Low Security (%) 46 | 100 93 100 23 18 . Level 1 41 | . 6 . 71 45 83 Level 2 11 | . . . 4 35 16 Level 3 . | . . . . . . Level 4 . | . . . . . . Level 5 . | . . . . . . High Security . | . . . . . . Max Security . | . . . . . . Squads Dispatched 12 | . 1 . 6 1 4 Investigation 5 | . 1 . 4 . . Extermination . | . . . . . . Reinforcement 5 | . . . 2 1 2 Assault 2 | . . . . . 2 Garrison . | . . . . . . Intercept . | . . . . . . Searches Triggered . | . . . . . . Construction Impeded 1 | . . . . . 1 Haulers Reinforced . | . . . . . . Active Scanning Responses . | . . . . . . Cargo Convoy Interrupts . | . . . . . . Stealth | -11 -10 -10 -9 -8 -8 --------- Run | Jun Mat Min Mat Mat Sto Distress Signals 6 | . 1 . 2 1 2 Communications Jammed . | . . . . . . Distress Signals . | . . . . . . Times Spotted 124 | . 14 10 43 26 31 Peak Tracking Total 12 | . 6 5 5 5 12 Tactical Retreats 21 | . . 3 11 5 2 Traps | -11 -10 -10 -9 -8 -8 ------- Run | Jun Mat Min Mat Mat Sto Traps Triggered 3 | . . . 2 . 1 Indirectly . | . . . . . . Trap Hack Attempts . | . . . . . . Triggered . | . . . . . . Disarmed . | . . . . . . Reprogrammed . | . . . . . . Reused . | . . . . . . Traps Extracted . | . . . . . . Installed . | . . . . . . Triggered . | . . . . . . Machines | -11 -10 -10 -9 -8 -8 ---------- Run | Jun Mat Min Mat Mat Sto Machines Disabled 11 | . . . 2 4 5 Max in Single Turn 2 | . . . 1 2 2 Machines Repaired . | . . . . . . Machines Sabotaged . | . . . . . . Overloaded Fab Kills . | . . . . . . Hacking | -11 -10 -10 -9 -8 -8 --------- Run | Jun Mat Min Mat Mat Sto Machines Accessed 18 | . 8 . 6 2 2 Terminals 13 | . 6 . 3 2 2 Fabricators . | . . . . . . Repair Stations 2 | . . . 2 . . Recycling Units 3 | . 2 . 1 . . Scanalyzers . | . . . . . . Garrison Access . | . . . . . . Total Hacks 55 | . 20 . 27 3 5 Successful 36 | . 13 . 17 2 4 Failed 19 | . 7 . 10 1 1 Catastrophic 3 | . 2 . . . 1 Database Lockouts . | . . . . . . Manual . | . . . . . . Terminals 35 | . 15 . 12 3 5 Fabricators . | . . . . . . Repair Stations 13 | . . . 13 . . Recycling Units 7 | . 5 . 2 . . Scanalyzers . | . . . . . . Garrison Access . | . . . . . . Terminal Hacks 21 | . 9 . 6 2 4 Record 10 | . 6 . 4 . . Part Schematic 2 | . . . . . 2 Robot Analysis 1 | . 1 . . . . Prototype ID Bank 1 | . . . . 1 . Open Door 1 | . . . . . 1 Branch Access Points 1 | . 1 . . . . Transport Status 1 | . . . 1 . . Hauler Manifests 1 | . . . . . 1 Zone Layout 3 | . 1 . 1 1 . Fabricator Hacks . | . . . . . . Repair Station Hacks 9 | . . . 9 . . Scan Component 5 | . . . 5 . . Repair 4 | . . . 4 . . Recycling Unit Hacks 6 | . 4 . 2 . . Report Inventory 4 | . 3 . 1 . . Retrieve Components 2 | . 1 . 1 . . Scanalyzer . | . . . . . . Garrison Access Hacks . | . . . . . . Unauthorized Hacks . | . . . . . . Terminals . | . . . . . . Fabricators . | . . . . . . Repair Stations . | . . . . . . Recycling Units . | . . . . . . Scanalyzers . | . . . . . . Garrison Access . | . . . . . . Data Cores Recovered . | . . . . . . Used . | . . . . . . Hacking Detections 11 | . 5 . 5 . 1 Full Trace Events 8 | . 4 . 4 . . Feedback Events 1 | . . . 1 . . Corruption 1 | . . . 1 . . Feedback Blocked . | . . . . . . Robot Schematics Acquired . | . . . . . . Robots Built . | . . . . . . Authchips . | . . . . . . Time . | . . . . . . Total Robot Build Rating . | . . . . . . Part Schematics Acquired 2 | . . . . . 2 Parts Built . | . . . . . . Authchips . | . . . . . . Time . | . . . . . . Total Part Build Rating . | . . . . . . Parts Repaired 4 | . . . 4 . . Time 108 | . . . 108 . . Parts Recycled . | . . . . . . Recycled Matter . | . . . . . . Retrieved Matter . | . . . . . . Retrieved Components 3 | . 1 . 2 . . Parts Scanalyzed . | . . . . . . Part Schematics Acquired . | . . . . . . Parts Damaged . | . . . . . . Bothacking | -11 -10 -10 -9 -8 -8 ------------ Run | Jun Mat Min Mat Mat Sto Used RIF Installer . | . . . . . . Robots Hacked . | . . . . . . Non-combat . | . . . . . . Combat . | . . . . . . Robot Hacks Applied . | . . . . . . Relay Couplers Released . | . . . . . . Fabnet Peak Effective % . | . . . . . . Robots Rewired . | . . . . . . Allies Hacked . | . . . . . . Hacks Repelled . | . . . . . . Allies | -11 -10 -10 -9 -8 -8 -------- Run | Jun Mat Min Mat Mat Sto Total Allies 2 | . . . . . 2 Largest Group 2 | . . . . . 2 Highest-Rated Group 62 | . . . . . 62 Highest-Rated Ally 31 | . . . . . 31 Total Orders . | . . . . . . Ally Attacks 6 | . . . . . 6 Total Damage 94 | . . . . . 94 Kills . | . . . . . . Allies Corrupted . | . . . . . . Allies Melted . | . . . . . . Intel | -11 -10 -10 -9 -8 -8 ------- Run | Jun Mat Min Mat Mat Sto Robot Analysis Total 1 | . 1 . . . . Derelict Logs Recovered . | . . . . . . Drone Launches . | . . . . . . Drone Recoveries . | . . . . . . Exploration | -11 -10 -10 -9 -8 -8 ------------- Run | Jun Mat Min Mat Mat Sto Turns Passed 3290 | 57 957 277 764 716 519 Spaces Moved 2659 | 45 748 302 831 437 296 Core 1 | 1 . . . . . Treads . | . . . . . . Legs . | . . . . . . Wheels 940 | 44 741 155 . . . Hover 1490 | . 4 . 753 437 296 Flight 228 | . 3 147 78 . . Fastest Speed 34 | 50 100 37 34 102 42 Average Speed 84 | 98 107 69 54 109 85 Slowest Speed 320 | 100 320 100 116 240 102 Overloaded Moves . | . . . . . . Propulsion Burnouts . | . . . . . . Robots Hopped . | . . . . . . Cave-ins Triggered . | . . . . . . Exploration Rate (%) 43 | 3 77 65 51 31 34 Regions Visited 5 Branch Regions 2 Pre-discovered Areas . | . . . . . . Known Exits Taken 1 | . 1 . . . . Unknown Exits Taken 4 | 1 . 1 1 1 . Scrap Searched . | . . . . . . Spaces Dug . | . . . . . . Terrain Destroyed 178 | . . . 60 62 56 Melee . | . . . . . . Projectile 1 | . . . . 1 . AOE 177 | . . . 60 61 56 Terrain Rammed . | . . . . . . Walls Destroyed . | . . . . . . Machines Disabled . | . . . . . . Actions | -11 -10 -10 -9 -8 -8 --------- Run | Jun Mat Min Mat Mat Sto Total 3384 | 57 848 346 1048 610 475 Wait 369 | . 25 22 126 102 94 Move 2654 | 44 747 301 830 436 296 Hop . | . . . . . . Pick Up 65 | 7 19 1 12 14 12 Fast Attach 20 | . 4 . 10 6 . Attach 33 | 6 4 4 6 4 9 Detach 1 | . . 1 . . . Swap 32 | . 8 2 6 6 10 Drop 37 | . 13 1 8 10 5 Fire 173 | . 28 14 50 32 49 Melee . | . . . . . . Ram . | . . . . . . Kick . | . . . . . . Crush . | . . . . . . Escape Stasis . | . . . . . . Rewire . | . . . . . . Trap . | . . . . . . Miscellaneous . | . . . . . . Route ------- -11/Junkyard -10/Materials (discovered 3 exits: *Mat x2 / *Min) -10/Mines (discovered 2 exits: *Mat x2) -9/Materials -8/Materials -8/Storage History --------- Turn | Location | Event 22 | -11/Junkyard | Discovered new exit (range 15) 58 | -11/Junkyard | Entered Materials 206 | -10/Materials | Discovered new exit (range 13) 314 | -10/Materials | Build established: Mutant 772 | -10/Materials | Discovered new exit (range 15) 823 | -10/Materials | Identified exit to Mines 1015 | -10/Materials | Entered Mines 1090 | -10/Mines | Found a hidden stash of uninstalled traps 1240 | -10/Mines | Discovered new exit (range 15) 1257 | -10/Mines | Discovered new exit (range 5) 1264 | -10/Mines | Lost 4 parts (1n3w) 1274 | -10/Mines | Core integrity fell below 50% 1292 | -10/Mines | Entered Materials 1292 | -9/Materials | Evolved 2 slots: Power x1, Propulsion x1 1453 | -9/Materials | Discovered new exit (range 12) 1619 | -9/Materials | Repaired Airjet 1660 | -9/Materials | Repaired Lgt. Deuterium Engine 1885 | -9/Materials | Repaired Hvy. EM Pulse Gun 1902 | -9/Materials | Repaired Hvy. EM Pulse Gun 1985 | -9/Materials | Lost 5 parts (1p2n2w) 2056 | -9/Materials | Entered another Materials area 2056 | -8/Materials | Evolved 2 slots: Utility x2 2242 | -8/Materials | Lost 3 parts (1p1n1u) 2419 | -8/Materials | Discovered new exit (range 15) 2772 | -8/Materials | Entered Storage 2969 | -8/Storage | Lost 4 parts (1p3w) 3200 | -8/Storage | Met a pair of Derelict thieves 3284 | -8/Storage | Core integrity fell below 50% 3289 | -8/Storage | Core integrity fell below 20% 3291 | -8/Storage | Destroyed by L-31 Rogue with Katana Last Messages --------------- 03282_ Adv. EMP Blaster destroyed. 03282_ Destroyed Adv. EMP Blaster. 03282_ I-25 Savior destroyed. 03282_ B-36 Bruiser destroyed. [Achievement: Quick And Dirty] 03282_ Chain reaction triggered in Corrupted Imp. Ion Engine. 03282_ G-50 Soldier destroyed. 03282_ Aerolev Unit destroyed. 03283_ Critical hit (Burn: +37). 03283_ U-05 Engineer lays Concrete. 03284_ Adv. Heat Sink destroyed. 03284_ G-47 Trooper misfires. 03285_ Aerolev Unit destroyed. 03285_ U-05 Engineer lays Concrete. 03287_ Imp. Medium Laser destroyed. 03287_ U-05 Engineer lays Concrete. 03288_ ECM Suite severed. 03289_ U-05 Engineer lays Concrete. 03290_ Sml. Battery destroyed. 03291_ U-05 Engineer lays Concrete. Map ----- +----------------------------------------------------+ | ???????????????# #??# #???????????????? | | ???????????????# #??## #???????????????? | | ???????????????# #?#####/ ##???????????????? | | ???????????????# #?# = # "?????????????? | | ???????????????# #?# = #?????????????? | | ????? ?????????# #?# ####=###?????????????? | | ?? ??????# " ### #??# #???????????????? | | ? ???# ## ##?#%#??????########## | | ? ####/##### ###+###????# | | ? / = ## ! #????# | | ? ###% T ## %* #????# """""" | | ????######??????#% ##### ## ###### "????" | | ???######???????# #???####### + + "????" | | ???#! ! ######### #?????????# ###### """""" | | ???# !! #T## #####?????# #????# | | ???# " # ![ #"""#?????# #????# | | ???#! + ##+###"Y"###???# #????########## | | ???# ! " # ##%= ##??#! #????# ######## | | ???#!! # # ##! ![* ##?######????# !%= = | | ???######### ## =%%% #???????????# """="""% | | ???????????# ## !*! #???????????# """ """ | | ???????????# ## #???????????# """ """ | | ???????????# # =% ????????????# | | ???????????# # u! g%*##??????????#T | | ???????????# T# ggll #??????????## | | ???????????# ###### @! #???????????# | | ???????????""""##??### ###???????????########## | | ?????????????????????#### ?????????????????####T# | | ?????????????????????????#?????????????????#!!" # | | ???????????????????????????????????????????#!! + | | ???????????????????????????????????????????#!!" # | | ???????????????????????????????????????????###### | | ????????????????????????????????????????????????# | | ????????????????????????????????????????????????? | | ????????????????????????????????????????????????? | | | | | | | | | | | | | | | | | | | | | | | | | | | | | | | +----------------------------------------------------+ Best States ------------- Heat Dissipation 50 Energy Generation 27 Energy Capacity 415 Matter Stores 450 Matter Capacity 450 Sight Range 16 Robot Scan Range 14 Terrain Scan Density 10 ECM Strength 1 Armor Coverage 150 Evasion (%) 63 Item Schematics ----------------- Xenon Bombardment Thruster | -8/Storage | Hacked Assault Cannon | -8/Storage | Hacked Robot Schematics ------------------ None Fabricated ------------ Nothing Alien Tech Used ----------------- None Achievements -------------- Party Time Quick And Dirty Challenges ------------ None Game ------ Seed MomentumTerrainDoomcannon Manual? 0 Play Time 01:36:23 Cumulative 22.1 hours Start 2023.06.07 @ 19:37:13 End 2023.06.07 @ 21:21:50 Sessions 1 Manual Loads 0 Difficulty Rogue Special Mode None Game No. 19 Rogue 19 Adventurer 0 Explorer 0 Win Type - Total 0 Types 0/0/0/0/0/0/0/0/0 Lore% 17 Gallery% 15 Achievement% 17 Wizard Run 0 Options --------- ASCII 0 Keyboard 0 Movement Mouse Keybinds 0 Fullscreen 2 Font 36/Smallcaps Map View 76x50 Tactical HUD 1 Map Filters NONE Filters NONE Steam 1 RUN: 7b78d013-a40f-4cd0-88fa-5396415f96a4